Cogmind - Beta 15 @@@ ROGUE MODE // 2025.07.18 @ 21:15:22 Player: EX-OCT Result: Destroyed by B5-5OW(R) with Subdweller Machine Gun Performance ------------- Evolutions (0) 0 Regions Visited (2) 400 Robots Destroyed (45) 225 Value Destroyed (924) 924 Prototype IDs (1) 20 Alien Tech Used (0) 0 Bonus (-6) -6 TOTAL SCORE: 1563 Bonus ------- High Alert Combat Kills 10 Friendly Fire -16 Cogmind --------- Core Integrity 0/250 Matter 276/300 Energy 96/100 System Corruption 1% Temperature Cool (0) Movement Core (150) Ox2 Location -10/Subcaves Parts ------- > --- POWER (1) -------- (None) > --- PROPULSION (2) --- (None) > --- UTILITY (2) ------ Hacking Suite > --- WEAPON (2) ------- Advanced Beam Cannon Subdweller Machine Gun > --- INVENTORY (5) ---- Large Storage Unit High-capacity Storage Unit Peak State ------------ > --- POWER ------------ Subdweller Power Source > --- PROPULSION ------- Light Treads Subdweller Monowheel > --- UTILITY ---------- Large Storage Unit Medium Armor Plating > --- WEAPON ----------- Advanced Beam Cannon Advanced Beam Cannon > --- INVENTORY -------- Light Ion Engine Subdweller Power Source Subdweller Optics Hacking Suite Advanced Beam Cannon Advanced Beam Cannon Autogun Autogun Autogun Subdweller Machine Gun Barrage Gun Grenade Launcher Makeshift Axe [Rating: 17] Favorites ----------- Power Ion Engine Engine Ion Engine Propulsion Light Treads Treads Light Treads Wheel Compact Wheel Utility Large Storage Unit Device Subdweller Optics Storage Large Storage Unit Hackware Hacking Suite Protection Medium Armor Plating Weapon Advanced Beam Cannon Energy Cannon Advanced Beam Cannon Ballistic Gun Autogun Launcher Grenade Launcher Impact Weapon Maul Build | -11 -10 -10 ------- Run | Yrd Mat Sub Slots Evolved . | . . . Power . | . . . Propulsion . | . . . Utility . | . . . Weapon . | . . . Parts Attached 29 | 6 10 13 Power 4 | 2 . 2 Engine 4 | 2 . 2 Core . | . . . Reactor . | . . . Propulsion 5 | 2 1 2 Treads 2 | 1 . 1 Leg . | . . . Wheel 3 | 1 1 1 Hover . | . . . Flight . | . . . Utility 7 | . 2 5 Device 1 | . . 1 Storage 2 | . 1 1 Processor . | . . . Hackware 1 | . . 1 Protection 3 | . 1 2 Artifact . | . . . Weapon 13 | 2 7 4 Energy Gun . | . . . Energy Cannon 4 | . 2 2 Ballistic Gun 7 | 2 3 2 Ballistic Cannon . | . . . Launcher 1 | . 1 . Special Weapon . | . . . Impact Weapon 1 | . 1 . Slashing Weapon . | . . . Piercing Weapon . | . . . Special Melee Weapon . | . . . Unidentified Prototypes 1 | . 1 . Parts Lost 9 | . 1 8 Power 2 | . . 2 Propulsion 5 | . 1 4 Utility 2 | . . 2 Weapon . | . . . Highest Loss Streak 3 | . 1 3 To Critical Strikes . | . . . Average Backups 11 | 2 11 12 Power 1 | . 1 1 Propulsion 1 | 1 1 . Utility 1 | . 1 1 Weapon 7 | . 6 8 Tool/Special . | . . . Unused Backups 2 | . . 2 Power . | . . . Propulsion . | . . . Utility . | . . . Weapon 2 | . . 2 Tool/Special . | . . . Average Slot Usage (%) 97 | . 96 97 Engine 13 | . 14 13 Treads 13 | . 14 13 Wheel 13 | . 13 13 Storage 13 | . 12 13 Protection 11 | . 11 11 Energy Cannon 10 | . 1 16 Ballistic Gun 16 | . 25 10 Peak Build Rating 17 | 5 14 17 Average Rating 13 | 4 10 14 On Entrance 5 | . 5 12 Naked Turns . | . . . Heaviest Build 53 | 8 40 53 Greatest Support 20 | 16 16 20 Greatest Overweight (x) 13 | . 2 13 Average Overweight (x) 1 | . 1 1 Largest Inventory Capacity 20 | 5 15 20 Average Capacity 14 | 5 14 14 Most Carried 15 | 3 14 15 Average Carried 12 | 2 11 12 Final Capacity 15 | 5 15 5 Final Carried 13 | 3 13 2 Class Distribution -------------------- 96% | Mutant 3% | Scavenger-Mutant Dominant Class ---------------- Mutant | -10/Materials Mutant | -10/Subcaves Resources | -11 -10 -10 ----------- Run | Yrd Mat Sub Matter Collected 1107 | 304 435 368 Remotely . | . . . Salvage Created 1071 | 123 465 483 Parts 80 | 6 36 38 Haulers Intercepted 2 | . 2 . Recyclers Shooed 1 | 1 . . Parts Field Recycled . | . . . Retrieved Matter . | . . . Parts Self-Destructed 17 | . . 17 Prevented . | . . . Kills | -11 -10 -10 ------- Run | Yrd Mat Sub Combat Hostiles Destroyed 33 | . 17 16 Guns 18 | . 11 7 Cannons 2 | . . 2 AOE 13 | . 6 7 Classes Destroyed 10 | 2 5 3 Tunneler 3 | 3 . . Hauler 2 | . 2 . Recycler 1 | 1 . . Operator 2 | . 2 . Turret 2 | . . 2 Watcher 2 | . 2 . Swarmer 18 | . 11 7 Grunt 6 | . 6 . Sentry 1 | . . 1 Subdweller 8 | . . 8 Best Kill Streak 10 | 2 10 4 Combat Bots Only 10 | . 10 4 Max Kills in Single Turn 4 | 1 4 4 Gunslinging . | . . . Exploded 4 | . 4 4 Melee . | . . . Uniques/NPCs Destroyed . | . . . Combat | -11 -10 -10 -------- Run | Yrd Mat Sub Hostile Shots Fired 183 | . 56 127 Missed 55 | . 17 38 Hits 128 | . 39 89 Projectile 128 | . 39 89 Critical Strikes 1 | . . 1 Damage Taken 1479 | . 351 1128 Core 254 | . 26 228 Absorbed by Shields . | . . . Core Remaining (%) 100 | 100 . . Volleys Fired 107 | 11 43 53 Largest 2 | 2 2 2 Hottest 136 | 40 53 136 Shots Fired 206 | 22 86 98 Gun 141 | 22 83 36 Cannon 59 | . . 59 Launcher 6 | . 3 3 Special . | . . . Kinetic 141 | 22 83 36 Thermal 59 | . . 59 Explosive 6 | . 3 3 Electromagnetic . | . . . Robot Hit Streak 12 | 4 6 12 Robot Miss Streak 5 | 2 5 3 Penetration Max . | . . . Secondary Targets 2 | . 2 . Max Gunslinging Chain 1 | . 1 . Shots Hit Robots 114 | 10 43 61 Core Hits 66 | 7 30 29 Critical Kills . | . . . Critical Parts Destroyed 1 | . 1 . Critical Strikes 1 | . 1 . Destroy 1 | . 1 . Melee Attacks 9 | . 9 . Impact 9 | . 9 . Slashing . | . . . Piercing . | . . . Sneak Attacks . | . . . Combat Hostiles . | . . . Follow-up Attacks . | . . . Damage Inflicted 2706 | 112 1064 1530 Guns 1327 | 112 696 519 Cannons 639 | . . 639 Explosions 739 | . 367 372 Melee . | . . . Ramming 1 | . 1 . Kinetic 1327 | 112 696 519 Thermal 639 | . . 639 Explosive 739 | . 367 372 Electromagnetic . | . . . Impact . | . . . Slashing . | . . . Piercing . | . . . Highest Corruption 1 | . 1 1 Average Corruption 1 | . 1 1 Corruption Purged . | . . . Corruption Blocked . | . . . Effects 19 | . 3 16 Message Errors 4 | . . 4 Matter Fused 5 | . 2 3 Heat Flow Errors 1 | . 1 . Data Loss (minor) 2 | . . 2 Data Loss (major) 2 | . . 2 Misfires 5 | . . 5 Overload Shots . | . . . Overflow Damage . | . . . Projectiles . | . . . Explosions . | . . . Melee . | . . . Knockbacks . | . . . Impact . | . . . Kinetic . | . . . Secondary . | . . . Self-Inflicted Damage 32 | . 17 15 Shots 2 | . 1 1 Rammed 1 | . 1 . Targets Rammed 1 | . 1 . Kicked . | . . . Crushed . | . . . Highest Temperature 123 | . 123 93 Average Temperature 20 | . 15 28 Received Heat Transfer 270 | . 42 228 Siege Activations . | . . . Martial Activations . | . . . Shielding Activations . | . . . Robots Disrupted . | . . . Combat Hostiles . | . . . Robots Corrupted . | . . . Combat Hostiles . | . . . Parts Fried . | . . . Impact Corruptions . | . . . Robots Melted . | . . . Combat Hostiles . | . . . Parts Melted 2 | . . 2 Heat Transferred 1147 | . . 1147 Parts Sabotaged . | . . . Parts Stolen . | . . . Parts Stripped . | . . . Power Chain Reactions . | . . . Alert | -11 -10 -10 ------- Run | Yrd Mat Sub Maximum Alert Level 2 | . 2 . Low Security (%) 48 | 100 44 . Level 1 36 | . 39 . Level 2 14 | . 15 . Level 3 . | . . . Level 4 . | . . . Level 5 . | . . . High Security . | . . . Max Security . | . . . Peak Influence 428 | 5 428 . Initial 3 | . 3 . Average 199 | 2 216 . Influence Increases 960 | 20 655 285 Destroy 0b10 Robot/C 540 | . 340 200 Destroy 0b10 Robot/NC 50 | 20 30 . Destroy Leader 88 | . 78 10 Successful Hack 40 | . 40 . Disable Machine 30 | . 30 . Destroy Structure 32 | . 32 . Lose Combat Pursuer 180 | . 105 75 Influence Decreases 914 | 15 308 591 Entered New Map 172 | . 2 170 Time Decay 652 | 15 286 351 Lost Part 80 | . 10 70 Lost Ally 10 | . 10 . Squads Dispatched 4 | . 4 . Investigation 2 | . 2 . Extermination . | . . . Reinforcement 2 | . 2 . Assault . | . . . Garrison . | . . . Intercept . | . . . Searches Triggered . | . . . Construction Impeded . | . . . Haulers Reinforced . | . . . Active Scanning Responses . | . . . Cargo Convoy Interrupts . | . . . Stealth | -11 -10 -10 --------- Run | Yrd Mat Sub Distress Signals 3 | . 3 . Communications Jammed . | . . . Distress Signals . | . . . Times Spotted 57 | . 35 22 Peak Tracking Total 8 | . 8 4 Tactical Retreats 6 | . 3 3 Traps | -11 -10 -10 ------- Run | Yrd Mat Sub Traps Triggered 3 | . 3 . Indirectly . | . . . Trap Hack Attempts . | . . . Triggered . | . . . Disarmed . | . . . Reprogrammed . | . . . Reused . | . . . Traps Extracted . | . . . Installed . | . . . Triggered . | . . . Machines | -11 -10 -10 ---------- Run | Yrd Mat Sub Machines Disabled 4 | . 2 2 Max in Single Turn 1 | . 1 1 Machines Repaired . | . . . Machines Dismantled . | . . . Machines Sabotaged . | . . . Overloaded Fab Kills . | . . . Hacking | -11 -10 -10 --------- Run | Yrd Mat Sub Machines Accessed 8 | . 7 1 Terminals 7 | . 7 . Fabricators . | . . . Repair Stations . | . . . Recycling Units . | . . . Scanalyzers . | . . . Garrison Access . | . . . Total Hacks 35 | . 34 1 Successful 19 | . 18 1 Failed 16 | . 16 . Catastrophic 1 | . 1 . Database Lockouts . | . . . Manual 32 | . 32 . Terminals 34 | . 34 . Fabricators . | . . . Repair Stations . | . . . Recycling Units . | . . . Scanalyzers . | . . . Garrison Access . | . . . Terminal Hacks 6 | . 5 1 Robot Analysis 2 | . 2 . Open Door 1 | . . 1 Terminal Index 1 | . 1 . Registered Components 1 | . 1 . Zone Layout 1 | . 1 . Fabricator Hacks . | . . . Repair Station Hacks . | . . . Recycling Unit Hacks . | . . . Scanalyzer . | . . . Garrison Access Hacks . | . . . Unauthorized Hacks 13 | . 13 . Terminals 13 | . 13 . Assimilate 1 | . 1 . Botnet 5 | . 5 . Operators 1 | . 1 . Skim 6 | . 6 . Fabricators . | . . . Repair Stations . | . . . Recycling Units . | . . . Scanalyzers . | . . . Garrison Access . | . . . Data Cores Recovered . | . . . Used . | . . . Hacking Detections 7 | . 7 . Full Trace Events . | . . . Feedback Events . | . . . Feedback Blocked . | . . . Robot Schematics Acquired . | . . . Robots Built . | . . . Authchips . | . . . Time . | . . . Total Robot Build Rating . | . . . Part Schematics Acquired . | . . . Parts Built . | . . . Authchips . | . . . Time . | . . . Total Part Build Rating . | . . . Parts Repaired . | . . . Time . | . . . Parts Recycled . | . . . Recycled Matter . | . . . Retrieved Matter . | . . . Retrieved Components . | . . . Parts Scanalyzed . | . . . Part Schematics Acquired . | . . . Parts Damaged . | . . . Bothacking | -11 -10 -10 ------------ Run | Yrd Mat Sub Used RIF Installer . | . . . Robots Hacked . | . . . Non-combat . | . . . Combat . | . . . Robot Hacks Applied . | . . . Relay Couplers Released . | . . . Fabnet Peak Effective % . | . . . Robots Rewired . | . . . Allies Hacked . | . . . Hacks Repelled . | . . . Allies | -11 -10 -10 -------- Run | Yrd Mat Sub Total Allies 1 | . 1 . Largest Group 1 | . 1 . Highest-Rated Group 10 | . 10 . Highest-Rated Ally 10 | . 10 . Total Orders . | . . . Ally Attacks . | . . . Total Damage . | . . . Kills . | . . . Allies Corrupted . | . . . Allies Melted . | . . . Intel | -11 -10 -10 ------- Run | Yrd Mat Sub Active Infowar (turns) 117 | . . 117 Optics 117 | . . 117 Robot Analysis Total 2 | . 2 . Derelict Logs Recovered 1 | . . 1 Drone Launches . | . . . Drone Recoveries . | . . . Exploration | -11 -10 -10 ------------- Run | Yrd Mat Sub Turns Passed 2870 | 90 1058 1722 Spaces Moved 1672 | 50 664 958 Core 18 | 3 . 15 Treads 239 | . . 239 Legs . | . . . Wheels 1415 | 47 664 704 Hover . | . . . Flight . | . . . Fastest Speed 50 | 50 100 120 Average Speed 142 | 97 125 156 Slowest Speed 700 | 100 130 700 Overloaded Moves . | . . . Propulsion Burnouts . | . . . Robots Hopped . | . . . Potential Cave-ins . | . . . Cave-ins Triggered . | . . . Exploration Rate (%) 50 | 4 94 52 Regions Visited 2 Branch Regions 1 Pre-discovered Areas 3 | . 2 1 Known Exits Taken . | . . . Unknown Exits Taken 2 | 1 1 . Scrap Searched . | . . . Spaces Dug 9 | . 9 . Terrain Destroyed 44 | . 27 17 Melee 9 | . 9 . Projectile . | . . . AOE 35 | . 18 17 Terrain Rammed . | . . . Walls Destroyed . | . . . Machines Disabled . | . . . Actions | -11 -10 -10 --------- Run | Yrd Mat Sub Total 1955 | 69 797 1089 Wait 91 | . 56 35 Move 1670 | 49 663 958 Hop . | . . . Pick Up 20 | 3 11 6 Fast Attach 9 | 4 4 1 Attach 8 | 1 1 6 Detach 2 | . . 2 Swap 21 | 1 7 13 Drop 17 | . 2 15 Fire 107 | 11 43 53 Melee 9 | . 9 . Ram . | . . . Kick . | . . . Crush 1 | . 1 . Escape Stasis . | . . . Rewire . | . . . Trap . | . . . Miscellaneous . | . . . Route ------- -11/Scrapyard -10/Materials (discovered 6 exits: [*Mat x3] / *Min x2 / *Sub) -10/Subcaves (discovered 4 exits: *Mat x2 / [*Rec] / [*Scr]) History --------- Turn | Location | Event 13 | -11/Scrapyard | Discovered new exit (range 15) 91 | -11/Scrapyard | Entered Materials 176 | -10/Materials | Discovered new exit (range 9) 313 | -10/Materials | Build established: Mutant 338 | -10/Materials | Discovered new exit (range 6) 500 | -10/Materials | Discovered new exit (range 15) 612 | -10/Materials | Discovered new exit (range 14) 617 | -10/Materials | Destroyed 10 combat bots 783 | -10/Materials | Learned 4 Recycling zone layouts 873 | -10/Materials | Discovered new exit (range 4) 933 | -10/Materials | Learned 4 Subcaves zone layouts 967 | -10/Materials | Learned 2 Storage zone layouts 1009 | -10/Materials | Learned Recycling recycling unit intel 1060 | -10/Materials | Identified exit to Mines 1060 | -10/Materials | Learned location of 1 exit from Materials 1149 | -10/Materials | Entered Subcaves 1150 | -10/Subcaves | Approached by a straggling Scientist 1150 | -10/Subcaves | Identified exit to Materials 1165 | -10/Subcaves | Learned location of Zion (-6) 1165 | -10/Subcaves | Met a Zionite searching for "candidates" 1187 | -10/Subcaves | Shifting Twisted Machinery released Barrage Gun 1198 | -10/Subcaves | Shifting Twisted Machinery released Mak. Axe 1243 | -10/Subcaves | A swath of the cavern ceiling suddenly collapsed 1842 | -10/Subcaves | Scientist uncovered a shortcut to Scraptown 1905 | -10/Subcaves | Learned location of 2 exits from Materials 2385 | -10/Subcaves | Discovered new exit (range 14) 2443 | -10/Subcaves | Lost 3 parts (1p1n1u) 2670 | -10/Subcaves | Core integrity fell below 50% 2865 | -10/Subcaves | Core integrity fell below 20% 2871 | -10/Subcaves | Destroyed by B5-5OW(R) with Subdweller Machine Gun Last Messages --------------- 02721_ Dropped Grenade Launcher. 02721_ Dropped Barrage Gun. 02722_ Dropped Adv. Beam Cannon. 02723_ Dropped Med. Armor Plating. 02724_ Dropped Lgt. Ion Engine. 02738_ System corrupted: Substantial component data lost. 02779_ Lgt. Treads destroyed. 02780_ Sub. Power Source melted. 02780_ V9-TZN(R) destroyed. 02788_ Acquired 35 matter. 02802_ Sub. Monowheel destroyed. 02821_ System corrupted: FCS attempts to trigger Adv. Beam Cannon. 02821_ System corrupted: Adv. Beam Cannon misfires. 02826_ MC-3UC(R) destroyed. 02829_ Acquired 43 matter. 02853_ Sub. Power Source destroyed. 02866_ 0N-JUZ(R) destroyed. Map ----- +----------------------------------------------------+ | ???????????????#"X "### # ####?## #?????? | | ???????????????#"" "#" # # # ## ??????# | | ???????????????#"" "#" # ## ???????# | | ???????????????#"" ## ## #???????# | | ???????????????#"" "#"X### ### #???????? | | ???????????????########## #?## #???????# | | ????????????????????????## #??#### #?####### | | ???????????????????????## ##????## ### | | ??????????????????????## ##????## ## | | ?????????????????????## ####?## | | ????????????????????## ### """ | | ????????????????????# ! " ##" | | ????????????????????# *[ ! "###"" | | ????????????????????# & ### ## "###" " | | ???????????????????## ! """""" | | ???????????????????# | | ???????????????????## # " #### #### | | ????????????????????# ###### "#??#####??# | | ????????????????????## #????# #????????? | | ?????????????????????## #????# #???????? | | ??????????????????????### #????# #???????? | | ????????????###?#####?### ##????# ##???????? | | ???????????? ### # ### # #?????## ##???????? | | ???????????? ## &R# ##?????###????????? | | ???????????? ### &%& #?????????????????? | | ???????????? ## @# ######????????????? | | ?????????? ####### ## ##????????????? | | ?????????? ##?????## ????????????? | | ??????????# ?????????? ??????????????? | | ???????????# ???????????? #????????????? | | ???????????## ?????????????# ### ###????????????? | | ?????????????????????????????? ?? ??????????????? | | ?????????????????????????????? ???##?????????????? | | ???????????????????????????????#?????????????????? | | ?????????????????????????????????????????????????? | | ?????????????????????????????????????????????????? | | ?????????????????????????????????????????????????? | | ?????????????????????????????????????????????????? | | ?????????????????????????????????????????????????? | | ?????????????????????????????????????????????????? | | ?????????????????????????????????????????????????? | | ?????????????????????????????????????????????????? | | ?????????????????????????????????????????????????? | | ?????????????????????????????????????????????????? | | ?????????????????????????????????????????????????? | | ?????????????????????????????????????????????????? | | ?????????????????????????????????????????????????? | | ?????????????????????????????????????????????????? | | ?????????????????????????????????????????????????? | | ?????????????????????????????????????????????????? | +----------------------------------------------------+ Best States ------------- Heat Dissipation 25 Energy Generation 15 Energy Capacity 250 Matter Stores 300 Matter Capacity 300 Sight Range 21 Terrain Scan Density 10 Armor Coverage 225 Evasion (%) 40 Recoil Reduction 1 Offensive Hacking 10 Item Schematics ----------------- None Robot Schematics ------------------ None Fabricated ------------ Nothing Repaired ---------- Nothing Alien Tech Used ----------------- None Achievements -------------- None Challenges ------------ None Game ------ Seed ScatterCloakHumpback Manual? 0 Play Time 00:23:08 Cumulative 347.6 hours Start 2025.07.18 @ 20:46:38 End 2025.07.18 @ 21:15:22 Sessions 1 Manual Loads 0 Difficulty Rogue Special Mode None Game No. 169 Rogue 169 Adventurer 0 Explorer 0 Win Type - Total 23 Types 8/1/5/1/5/1/0/1/0/1 Lore% 90 Gallery% 79 Achievement% 76 Wizard Run 0 Options --------- Layout 1 ASCII 0 Keyboard 0 Movement Numpad Keybinds 0 Fullscreen 1 Font 24/Smallcaps Map View 50x35 Zoom Use 0% Tactical HUD 1 Map Filters NONE Filters NONE Steam 1 RUN: 1575a5ed-0a35-466b-847e-025b32e22dcb